[Event "Mistrovství Čech mládeže 2023 - HD16"]
[Site "Harrachov, Czech Republic"]
[Date "2023.10.22"]
[Round "2.15"]
[White "Barták, Josef"]
[Black "Sadil, Antonín"]
[Result "1-0"]
[TimeControl "90m + 30s"]
[WhiteElo "1476"]
[BlackElo "1792"]

1. e4 {[%clk 01:30:55]} {[%emt 00:00:04]} c5 {[%clk 01:30:47]} {[%emt
00:00:14]} 2. Nc3 {[%clk 01:31:09]} {[%emt 00:00:16]} Nc6 {[%clk 01:31:03]}
{[%emt 00:00:14]} 3. g3 {[%clk 01:31:33]} {[%emt 00:00:06]} g6 {[%clk
01:31:21]} {[%emt 00:00:12]} 4. Bg2 {[%clk 01:31:57]} {[%emt 00:00:05]} Bg7
{[%clk 01:31:35]} {[%emt 00:00:16]} 5. d3 {[%clk 01:32:13]} {[%emt 00:00:14]}
Rb8 {[%clk 01:31:53]} {[%emt 00:00:13]} 6. f4 {[%clk 01:23:58]} {[%emt
00:08:45]} d6 {[%clk 01:27:51]} {[%emt 00:04:33]} 7. Nf3 {[%clk 01:21:32]}
{[%emt 00:02:55]} e6 {[%clk 01:25:36]} {[%emt 00:02:45]} 8. O-O {[%clk
01:18:36]} {[%emt 00:03:25]} b5 {[%clk 01:25:33]} {[%emt 00:00:33]} 9. Ne2
{[%clk 01:14:32]} {[%emt 00:04:34]} Nge7 {[%clk 01:15:33]} {[%emt 00:10:32]} 10.
d4 {[%clk 01:11:23]} {[%emt 00:03:38]} cxd4 {[%clk 01:15:20]} {[%emt 00:00:43]}
11. Nexd4 {[%clk 01:10:16]} {[%emt 00:01:37]} O-O {[%clk 01:08:53]} {[%emt
00:06:56]} 12. Be3 {[%clk 01:02:44]} {[%emt 00:08:02]} b4 {[%clk 01:02:37]}
{[%emt 00:06:46]} 13. Qd2 {[%clk 00:48:41]} {[%emt 00:14:33]} f5 {[%clk
00:56:19]} {[%emt 00:06:48]} 14. exf5 {[%clk 00:39:51]} {[%emt 00:09:19]} gxf5
{[%clk 00:56:07]} {[%emt 00:00:42]} 15. Rad1 {[%clk 00:36:56]} {[%emt
00:03:25]} Nxd4 {[%clk 00:46:28]} {[%emt 00:10:09]} 16. Bxd4 {[%clk 00:36:23]}
{[%emt 00:01:03]} Bxd4+ {[%clk 00:46:09]} {[%emt 00:00:50]} 17. Qxd4 {[%clk
00:36:03]} {[%emt 00:00:50]} Qb6 {[%clk 00:45:55]} {[%emt 00:00:44]} 18. Rf2
{[%clk 00:32:54]} {[%emt 00:03:38]} Nd5 {[%clk 00:40:04]} {[%emt 00:06:21]} 19.
Re2 {[%clk 00:25:31]} {[%emt 00:07:52]} h6 {[%clk 00:36:17]} {[%emt 00:04:17]}
20. Qxb6 {[%clk 00:24:04]} {[%emt 00:01:57]} Rxb6 {[%clk 00:36:21]} {[%emt
00:00:27]} 21. Nd4 {[%clk 00:23:58]} {[%emt 00:00:35]} Nc7 {[%clk 00:36:06]}
{[%emt 00:00:45]} 22. Nc6 {[%clk 00:20:31]} {[%emt 00:03:58]} Ba6 {[%clk
00:34:23]} {[%emt 00:02:13]} 23. Re3 {[%clk 00:19:18]} {[%emt 00:01:42]} d5
{[%clk 00:32:37]} {[%emt 00:02:16]} 24. Ne5 {[%clk 00:18:36]} {[%emt 00:01:12]}
Rd8 {[%clk 00:29:45]} {[%emt 00:03:22]} 25. g4 {[%clk 00:15:37]} {[%emt
00:03:30]} fxg4 {[%clk 00:27:58]} {[%emt 00:02:17]} 26. Nxg4 {[%clk 00:15:56]}
{[%emt 00:00:10]} Rc6 {[%clk 00:23:56]} {[%emt 00:04:32]} 27. Rg3 {[%clk
00:11:07]} {[%emt 00:05:19]} Kf8 {[%clk 00:21:52]} {[%emt 00:02:35]} 28. Nxh6
{[%clk 00:10:49]} {[%emt 00:00:48]} Rxc2 {[%clk 00:19:31]} {[%emt 00:02:51]} 29.
Be4 {[%clk 00:05:38]} {[%emt 00:05:41]} dxe4 {[%clk 00:15:00]} {[%emt
00:05:01]} 30. Rxd8+ {[%clk 00:05:06]} {[%emt 00:01:02]} Ke7 {[%clk 00:15:20]}
{[%emt 00:00:10]} 31. Rd4 {[%clk 00:04:49]} {[%emt 00:00:46]} Nd5 {[%clk
00:14:00]} {[%emt 00:01:50]} 32. Rxe4 {[%clk 00:03:47]} {[%emt 00:01:32]} Rc1+
{[%clk 00:13:43]} {[%emt 00:00:47]} 33. Kg2 {[%clk 00:03:48]} {[%emt 00:00:29]}
Rc2+ {[%clk 00:11:49]} {[%emt 00:02:24]} 34. Kf3 {[%clk 00:02:28]} {[%emt
00:01:50]} Kd6 {[%clk 00:09:29]} {[%emt 00:02:50]} 35. Rg6 {[%clk 00:02:10]}
{[%emt 00:00:48]} Be2+ {[%clk 00:06:30]} {[%emt 00:03:30]} 36. Kg3 {[%clk
00:01:55]} {[%emt 00:00:45]} Nc7 {[%clk 00:06:34]} {[%emt 00:00:26]} 37. Rxb4
{[%clk 00:01:29]} {[%emt 00:00:56]} Bf1 {[%clk 00:05:48]} {[%emt 00:01:15]} 38.
Nf5+ {[%clk 00:01:07]} {[%emt 00:00:53]} Kc5 {[%clk 00:05:27]} {[%emt
00:00:52]} 39. Ne3 {[%clk 00:01:28]} {[%emt 00:00:09]} Rc1 {[%clk 00:05:03]}
{[%emt 00:00:54]} 40. Rb3 {[%clk 00:01:41]} {[%emt 00:00:17]} Bc4 {[%clk
00:03:51]} {[%emt 00:01:42]} 41. Rg5+ {[%clk 00:02:01]} {[%emt 00:00:11]} Nd5
{[%clk 00:02:59]} {[%emt 00:01:21]} 42. Nxc4 {[%clk 00:02:11]} {[%emt
00:00:21]} Kxc4 {[%clk 00:03:10]} {[%emt 00:00:19]} 43. Re5 {[%clk 00:02:04]}
{[%emt 00:00:36]} Rg1+ {[%clk 00:02:31]} {[%emt 00:01:09]} 44. Kf2 {[%clk
00:02:18]} {[%emt 00:00:17]} Rg6 {[%clk 00:02:36]} {[%emt 00:00:25]} 45. Re4+
{[%clk 00:02:33]} {[%emt 00:00:14]} Kc5 {[%clk 00:02:49]} {[%emt 00:00:17]} 46.
Rg3 {[%clk 00:02:33]} {[%emt 00:00:30]} Rf6 {[%clk 00:02:35]} {[%emt 00:00:44]}
47. Rg5 {[%clk 00:02:33]} {[%emt 00:00:30]} Kc6 {[%clk 00:01:41]} {[%emt
00:01:25]} 48. Kg3 {[%clk 00:02:54]} {[%emt 00:00:08]} a6 {[%clk 00:01:11]}
{[%emt 00:01:01]} 49. h4 {[%clk 00:03:09]} {[%emt 00:00:15]} Rh6 {[%clk
00:01:22]} {[%emt 00:00:18]} 50. h5 {[%clk 00:03:14]} {[%emt 00:00:26]} Kd6
{[%clk 00:01:03]} {[%emt 00:00:49]} 51. Kh4 {[%clk 00:03:11]} {[%emt 00:00:32]}
Nc7 {[%clk 00:01:09]} {[%emt 00:00:25]} 52. Rd4+ {[%clk 00:03:15]} {[%emt
00:00:26]} Nd5 {[%clk 00:00:59]} {[%emt 00:00:40]} 53. Rg6 {[%clk 00:03:24]}
{[%emt 00:00:20]} Rh8 {[%clk 00:01:16]} {[%emt 00:00:13]} 54. Re4 {[%clk
00:03:06]} {[%emt 00:00:49]} Nc7 {[%clk 00:01:06]} {[%emt 00:00:41]} 55. Kg5
{[%clk 00:03:17]} {[%emt 00:00:18]} a5 {[%clk 00:01:08]} {[%emt 00:00:29]} 56.
h6 {[%clk 00:03:32]} {[%emt 00:00:15]} a4 {[%clk 00:01:06]} {[%emt 00:00:32]}
57. Rxa4 {[%clk 00:03:52]} {[%emt 00:00:11]} Ne8 {[%clk 00:00:56]} {[%emt
00:00:39]} 58. Ra6+ {[%clk 00:04:09]} {[%emt 00:00:13]} Ke7 {[%clk 00:01:06]}
{[%emt 00:00:20]} 59. Raxe6+ {[%clk 00:04:21]} {[%emt 00:00:17]} Kf7 {[%clk
00:01:15]} {[%emt 00:00:21]} 60. f5 {[%clk 00:04:20]} {[%emt 00:00:32]} Rh7
{[%clk 00:00:46]} {[%emt 00:00:59]} 61. b4 {[%clk 00:04:16]} {[%emt 00:00:34]}
Kf8 {[%clk 00:00:43]} {[%emt 00:00:33]} 62. Rg8+ {[%clk 00:04:16]} {[%emt
00:00:30]} Kf7 {[%clk 00:00:34]} {[%emt 00:00:39]} 63. Rgxe8 {[%clk 00:04:31]}
{[%emt 00:00:14]} Rh8 {[%clk 00:00:34]} {[%emt 00:00:31]} 64. R6e7# {[%clk
00:04:54]} {[%emt 00:00:07]} 1-0

[Event "Mistrovství Čech mládeže 2023 - HD16"]
[Site "Harrachov, Czech Republic"]
[Date "2023.10.22"]
[Round "2.16"]
[White "Dufková, Tereza"]
[Black "Bohatyrov, Mykola"]
[Result "0-1"]
[TimeControl "90m + 30s"]
[WhiteElo "1299"]
[BlackElo "1725"]

1. e4 {[%clk 01:30:57]} {[%emt 00:00:02]} e6 {[%clk 01:30:58]} {[%emt
00:00:03]} 2. d4 {[%clk 01:31:20]} {[%emt 00:00:07]} d5 {[%clk 01:31:26]}
{[%emt 00:00:03]} 3. e5 {[%clk 01:31:47]} {[%emt 00:00:03]} c5 {[%clk
01:31:53]} {[%emt 00:00:03]} 4. Nf3 {[%clk 01:31:58]} {[%emt 00:00:18]} Nc6
{[%clk 01:32:16]} {[%emt 00:00:07]} 5. Bb5 {[%clk 01:32:16]} {[%emt 00:00:12]}
a6 {[%clk 01:32:16]} {[%emt 00:00:30]} 6. Ba4 {[%clk 01:32:21]} {[%emt
00:00:25]} b5 {[%clk 01:32:36]} {[%emt 00:00:11]} 7. Bg5 {[%clk 01:29:03]}
{[%emt 00:03:47]} Be7 {[%clk 01:32:48]} {[%emt 00:00:18]} 8. Bxe7 {[%clk
01:28:52]} {[%emt 00:00:42]} Ngxe7 {[%clk 01:33:06]} {[%emt 00:00:11]} 9. Ng5
{[%clk 01:26:00]} {[%emt 00:03:22]} bxa4 {[%clk 01:32:39]} {[%emt 00:00:58]} 10.
Qh5 {[%clk 01:24:01]} {[%emt 00:02:28]} g6 {[%clk 01:32:32]} {[%emt 00:00:38]}
11. Qh6 {[%clk 01:23:54]} {[%emt 00:00:27]} Nf5 {[%clk 01:32:59]} {[%emt
00:00:13]} 12. Qh3 {[%clk 01:21:14]} {[%emt 00:03:10]} Qxg5 {[%clk 01:33:24]}
{[%emt 00:00:05]} 13. Nc3 {[%clk 01:21:09]} {[%emt 00:00:35]} Ncxd4 {[%clk
01:32:47]} {[%emt 00:01:07]} 14. O-O {[%clk 01:21:13]} {[%emt 00:00:26]} Bd7
{[%clk 01:31:42]} {[%emt 00:01:36]} 15. Rac1 {[%clk 01:21:07]} {[%emt
00:00:36]} Qh4 {[%clk 01:31:02]} {[%emt 00:01:10]} 16. Qd3 {[%clk 01:21:17]}
{[%emt 00:00:19]} O-O {[%clk 01:30:03]} {[%emt 00:01:30]} 17. a3 {[%clk
01:18:25]} {[%emt 00:03:22]} Rfb8 {[%clk 01:29:51]} {[%emt 00:00:42]} 18. Ne2
{[%clk 01:14:26]} {[%emt 00:04:28]} Bb5 {[%clk 01:29:41]} {[%emt 00:00:40]} 0-1

[Event "Mistrovství Čech mládeže 2023 - HD16"]
[Site "Harrachov, Czech Republic"]
[Date "2023.10.22"]
[Round "2.17"]
[White "Garabik, Marek"]
[Black "Jirman, Jonáš"]
[Result "1-0"]
[TimeControl "90m + 30s"]
[WhiteElo "1697"]
[BlackElo "1328"]

1. e4 {[%clk 01:30:55]} {[%emt 00:00:04]} c5 {[%clk 01:30:45]} {[%emt
00:00:16]} 2. Nc3 {[%clk 01:31:19]} {[%emt 00:00:06]} Nc6 {[%clk 01:31:09]}
{[%emt 00:00:06]} 3. f4 {[%clk 01:31:26]} {[%emt 00:00:23]} d6 {[%clk
01:31:29]} {[%emt 00:00:10]} 4. Bb5 {[%clk 01:30:43]} {[%emt 00:01:13]} g6
{[%clk 01:31:46]} {[%emt 00:00:13]} 5. Bxc6+ {[%clk 01:30:17]} {[%emt
00:00:56]} bxc6 {[%clk 01:32:09]} {[%emt 00:00:07]} 6. Nf3 {[%clk 01:30:42]}
{[%emt 00:00:04]} Bg7 {[%clk 01:32:19]} {[%emt 00:00:20]} 7. d3 {[%clk
01:24:47]} {[%emt 00:06:26]} Nf6 {[%clk 01:29:07]} {[%emt 00:03:41]} 8. O-O
{[%clk 01:24:46]} {[%emt 00:00:32]} O-O {[%clk 01:28:45]} {[%emt 00:00:52]} 9.
h3 {[%clk 01:24:28]} {[%emt 00:00:47]} Rb8 {[%clk 01:26:07]} {[%emt 00:03:08]}
10. Rb1 {[%clk 01:20:00]} {[%emt 00:04:58]} Qc7 {[%clk 01:18:04]} {[%emt
00:08:34]} 11. Be3 {[%clk 01:17:40]} {[%emt 00:02:50]} Re8 {[%clk 01:12:52]}
{[%emt 00:05:43]} 12. Qd2 {[%clk 01:17:04]} {[%emt 00:01:05]} Bd7 {[%clk
01:07:18]} {[%emt 00:06:03]} 13. Bf2 {[%clk 01:15:10]} {[%emt 00:02:25]} Rbd8
{[%clk 01:03:14]} {[%emt 00:04:03]} 14. Ne2 {[%emt 00:05:28]} Bc8 {[%clk
00:59:47]} {[%emt 00:02:05]} 15. c3 {[%clk 01:07:01]} {[%emt 00:06:04]} Ba6
{[%emt 00:07:18]} 16. Qc2 {[%clk 01:05:38]} {[%emt 00:01:50]} Rb8 {[%clk
00:43:29]} {[%emt 00:10:02]} 17. b3 {[%clk 01:02:20]} {[%emt 00:03:49]} Nd7
{[%clk 00:40:55]} {[%emt 00:03:04]} 18. d4 {[%clk 00:48:25]} {[%emt 00:14:25]}
cxd4 {[%clk 00:39:05]} {[%emt 00:02:20]} 19. cxd4 {[%clk 00:45:53]} {[%emt
00:03:02]} Rec8 {[%clk 00:38:13]} {[%emt 00:01:22]} 20. Rfc1 {[%clk 00:45:01]}
{[%emt 00:01:22]} Qb7 {[%clk 00:36:04]} {[%emt 00:02:39]} 21. Nc3 {[%clk
00:37:00]} {[%emt 00:08:31]} c5 {[%clk 00:32:39]} {[%emt 00:03:55]} 22. Nd5
{[%clk 00:21:13]} {[%emt 00:16:16]} Kf8 {[%clk 00:29:49]} {[%emt 00:03:21]} 23.
Qd2 {[%clk 00:19:04]} {[%emt 00:02:38]} cxd4 {[%clk 00:25:17]} {[%emt
00:05:03]} 24. Bxd4 {[%clk 00:18:29]} {[%emt 00:01:05]} f6 {[%clk 00:24:29]}
{[%emt 00:01:18]} 25. Rxc8+ {[%clk 00:17:45]} {[%emt 00:01:15]} Rxc8 {[%emt
00:01:43]} 26. Rc1 {[%clk 00:12:56]} {[%emt 00:04:39]} Rxc1+ {[%clk 00:24:06]}
{[%emt 00:00:19]} 27. Qxc1 {[%clk 00:13:25]} {[%emt 00:00:01]} Bd3 {[%clk
00:21:57]} {[%emt 00:02:39]} 28. Qe3 {[%clk 00:13:24]} {[%emt 00:00:31]} Bb1
{[%clk 00:22:22]} {[%emt 00:00:05]} 29. Nc3 {[%clk 00:13:52]} {[%emt 00:00:02]}
e5 {[%clk 00:21:14]} {[%emt 00:01:38]} 30. fxe5 {[%clk 00:13:25]} {[%emt
00:00:58]} fxe5 {[%clk 00:20:57]} {[%emt 00:00:46]} 31. Bxa7 {[%clk 00:13:40]}
{[%emt 00:00:15]} Bc2 {[%clk 00:20:08]} {[%emt 00:01:18]} 32. Ne1 {[%clk
00:12:42]} {[%emt 00:01:29]} Bxe4 {[%clk 00:19:46]} {[%emt 00:00:52]} 33. Nxe4
{[%clk 00:12:23]} {[%emt 00:00:49]} d5 {[%clk 00:19:46]} {[%emt 00:00:29]} 34.
Nc5 {[%clk 00:11:11]} {[%emt 00:01:42]} Qc6 {[%clk 00:16:32]} {[%emt 00:03:45]}
35. Nxd7+ {[%clk 00:11:03]} {[%emt 00:00:38]} Qxd7 {[%clk 00:16:56]} {[%emt
00:00:05]} 36. Nf3 {[%clk 00:08:49]} {[%emt 00:02:45]} d4 {[%clk 00:15:04]}
{[%emt 00:02:23]} 37. Bc5+ {[%clk 00:08:43]} {[%emt 00:00:35]} Kg8 {[%clk
00:15:28]} {[%emt 00:00:06]} 38. Nxe5 {[%clk 00:08:02]} {[%emt 00:01:11]} Bxe5
{[%clk 00:15:28]} {[%emt 00:00:29]} 39. Qxe5 {[%clk 00:08:22]} {[%emt
00:00:10]} d3 {[%clk 00:15:54]} {[%emt 00:00:05]} 40. Qe1 {[%clk 00:07:03]}
{[%emt 00:01:49]} d2 {[%clk 00:13:37]} {[%emt 00:02:47]} 41. Qd1 {[%clk
00:07:30]} {[%emt 00:00:02]} Qf5 {[%clk 00:14:01]} {[%emt 00:00:06]} 42. Be3
{[%clk 00:07:04]} {[%emt 00:00:56]} Qe5 {[%clk 00:13:17]} {[%emt 00:01:15]} 43.
Qxd2 {[%clk 00:07:13]} {[%emt 00:00:21]} Qa1+ {[%clk 00:13:42]} {[%emt
00:00:05]} 44. Kh2 {[%clk 00:07:27]} {[%emt 00:00:16]} Qe5+ {[%clk 00:14:00]}
{[%emt 00:00:11]} 45. Bf4 {[%emt 00:00:02]} 1-0

[Event "Mistrovství Čech mládeže 2023 - HD16"]
[Site "Harrachov, Czech Republic"]
[Date "2023.10.22"]
[Round "2.18"]
[White "Tichý, Tomáš"]
[Black "Dudarec, Elias"]
[Result "1/2-1/2"]
[TimeControl "90m + 30s"]
[WhiteElo "1697"]
[BlackElo "1535"]

1. e4 {[%clk 01:30:54]} {[%emt 00:00:05]} e6 {[%clk 01:30:50]} {[%emt
00:00:10]} 2. d4 {[%clk 01:31:15]} {[%emt 00:00:09]} d5 {[%clk 01:31:15]}
{[%emt 00:00:05]} 3. Nd2 {[%clk 01:31:38]} {[%emt 00:00:07]} c5 {[%clk
01:31:33]} {[%emt 00:00:11]} 4. exd5 {[%clk 01:32:02]} {[%emt 00:00:06]} exd5
{[%clk 01:31:56]} {[%emt 00:00:08]} 5. Ngf3 {[%clk 01:32:20]} {[%emt 00:00:12]}
Nf6 {[%clk 01:30:48]} {[%emt 00:01:38]} 6. Bb5+ {[%clk 01:31:13]} {[%emt
00:01:37]} Bd7 {[%clk 01:29:36]} {[%emt 00:01:42]} 7. Bxd7+ {[%clk 01:30:14]}
{[%emt 00:01:29]} Nbxd7 {[%clk 01:29:32]} {[%emt 00:00:34]} 8. O-O {[%clk
01:29:59]} {[%emt 00:00:45]} Be7 {[%clk 01:28:30]} {[%emt 00:01:31]} 9. dxc5
{[%clk 01:27:42]} {[%emt 00:02:48]} Nxc5 {[%clk 01:26:44]} {[%emt 00:02:16]} 10.
Nd4 {[%clk 01:23:37]} {[%emt 00:04:35]} O-O {[%clk 01:24:09]} {[%emt 00:03:04]}
11. N2f3 {[%clk 01:21:11]} {[%emt 00:02:56]} Nce4 {[%clk 01:06:52]} {[%emt
00:17:48]} 12. Bf4 {[%clk 01:18:04]} {[%emt 00:03:36]} Bd6 {[%clk 01:01:09]}
{[%emt 00:06:13]} 13. Bxd6 {[%clk 01:14:24]} {[%emt 00:04:11]} Nxd6 {[%clk
00:59:23]} {[%emt 00:02:15]} 14. c3 {[%clk 01:12:39]} {[%emt 00:02:16]} Re8
{[%clk 00:58:31]} {[%emt 00:01:22]} 15. Qb3 {[%clk 01:08:41]} {[%emt 00:04:28]}
Qd7 {[%clk 00:54:02]} {[%emt 00:04:59]} 16. Rad1 {[%clk 01:04:23]} {[%emt
00:04:48]} Rac8 {[%clk 00:52:22]} {[%emt 00:02:09]} 17. Rd3 {[%clk 00:59:42]}
{[%emt 00:05:12]} a6 {[%clk 00:49:18]} {[%emt 00:03:33]} 18. Qd1 {[%clk
00:41:33]} {[%emt 00:18:39]} Nc4 {[%clk 00:47:11]} {[%emt 00:02:37]} 19. Qb1
{[%clk 00:40:51]} {[%emt 00:01:12]} Re4 {[%clk 00:43:08]} {[%emt 00:04:34]} 20.
Rfd1 {[%clk 00:33:42]} {[%emt 00:07:39]} Rce8 {[%clk 00:34:04]} {[%emt
00:09:33]} 21. Nc2 {[%clk 00:30:50]} {[%emt 00:03:22]} Rg4 {[%clk 00:23:09]}
{[%emt 00:11:25]} 22. b3 {[%clk 00:25:07]} {[%emt 00:06:14]} Ne5 {[%clk
00:20:13]} {[%emt 00:03:26]} 23. Nxe5 {[%clk 00:25:00]} {[%emt 00:00:36]} Rxe5
{[%clk 00:20:36]} {[%emt 00:00:07]} 24. c4 {[%clk 00:20:13]} {[%emt 00:05:18]}
Rh5 {[%clk 00:09:57]} {[%emt 00:11:09]} 25. Ne3 {[%clk 00:17:18]} {[%emt
00:03:25]} Rgh4 {[%clk 00:09:55]} {[%emt 00:00:32]} 26. Nf1 {[%clk 00:03:45]}
{[%emt 00:14:02]} g6 {[%clk 00:08:15]} {[%emt 00:02:12]} 27. Ng3 {[%clk
00:03:16]} {[%emt 00:00:58]} Rg5 {[%clk 00:03:30]} {[%emt 00:05:15]} 28. cxd5
{[%clk 00:02:38]} {[%emt 00:01:08]} Qd6 {[%clk 00:02:56]} {[%emt 00:01:03]} 29.
Re3 {[%clk 00:00:56]} {[%emt 00:02:12]} Rxh2 {[%clk 00:01:46]} {[%emt
00:01:41]} 30. Kxh2 {[%clk 00:00:48]} {[%emt 00:00:38]} Ng4+ {[%clk 00:02:11]}
{[%emt 00:00:05]} 31. Kg1 {[%clk 00:00:48]} {[%emt 00:00:30]} Nxe3 {[%clk
00:02:38]} {[%emt 00:00:03]} 32. Qc1 {[%clk 00:00:34]} {[%emt 00:00:44]} Nxd1
{[%clk 00:01:29]} {[%emt 00:01:39]} 33. Qxg5 {[%clk 00:00:59]} {[%emt
00:00:05]} Nc3 {[%clk 00:01:43]} {[%emt 00:00:15]} 34. Nf5 {[%clk 00:00:50]}
{[%emt 00:00:40]} Qd7 {[%clk 00:01:11]} {[%emt 00:01:02]} 35. Ne7+ {[%clk
00:00:51]} {[%emt 00:00:28]} Kf8 {[%clk 00:00:56]} {[%emt 00:00:46]} 36. Qe5
{[%clk 00:00:42]} {[%emt 00:00:38]} Qg4 {[%clk 00:00:46]} {[%emt 00:00:40]} 37.
Qxc3 {[%clk 00:00:40]} {[%emt 00:00:32]} Qd1+ {[%clk 00:01:12]} {[%emt
00:00:04]} 38. Kh2 {[%clk 00:01:02]} {[%emt 00:00:08]} Qh5+ {[%clk 00:01:31]}
{[%emt 00:00:11]} 39. Kg1 {[%clk 00:00:44]} {[%emt 00:00:48]} Qd1+ {[%clk
00:01:20]} {[%emt 00:00:41]} 40. Kh2 {[%clk 00:01:05]} {[%emt 00:00:10]} Qh5+
{[%clk 00:01:33]} {[%emt 00:00:16]} 41. Kg1 {[%clk 00:00:42]} {[%emt 00:00:53]}
Qd1+ {[%clk 00:01:53]} {[%emt 00:00:11]} 42. Kh2 {[%clk 00:01:06]} {[%emt
00:00:06]} Qh5+ {[%clk 00:02:18]} {[%emt 00:00:05]} 43. Kg1 {[%clk 00:01:28]}
{[%emt 00:00:07]} 1/2-1/2

[Event "Mistrovství Čech mládeže 2023 - HD16"]
[Site "Harrachov, Czech Republic"]
[Date "2023.10.22"]
[Round "2.19"]
[White "Bauer, Sebastian"]
[Black "Martinkovič, Adam"]
[Result "0-1"]
[TimeControl "90m + 30s"]
[WhiteElo "1366"]
[BlackElo "1680"]

1. e4 {[%clk 01:29:58]} {[%emt 00:01:01]} c6 {[%clk 01:29:37]} {[%emt
00:01:23]} 2. Nc3 {[%clk 01:30:24]} {[%emt 00:00:04]} d5 {[%clk 01:29:58]}
{[%emt 00:00:09]} 3. Nf3 {[%clk 01:30:50]} {[%emt 00:00:04]} dxe4 {[%clk
01:27:56]} {[%emt 00:02:32]} 4. Nxe4 {[%clk 01:31:03]} {[%emt 00:00:16]} Bf5
{[%clk 01:26:06]} {[%emt 00:02:21]} 5. Ng3 {[%clk 01:30:50]} {[%emt 00:00:42]}
Bg6 {[%clk 01:26:29]} {[%emt 00:00:07]} 6. h4 {[%clk 01:30:49]} {[%emt
00:00:31]} h6 {[%clk 01:26:45]} {[%emt 00:00:14]} 7. Ne5 {[%clk 01:29:09]}
{[%emt 00:02:11]} Qd6 {[%clk 01:22:20]} {[%emt 00:04:55]} 8. d4 {[%clk
01:22:40]} {[%emt 00:06:59]} Nd7 {[%clk 01:20:43]} {[%emt 00:02:06]} 9. Nxg6
{[%clk 01:20:43]} {[%emt 00:02:27]} Qxg6 {[%clk 01:20:37]} {[%emt 00:00:36]} 10.
Bd3 {[%clk 01:14:04]} {[%emt 00:07:09]} Qd6 {[%clk 01:18:41]} {[%emt 00:02:26]}
11. Bd2 {[%clk 01:05:14]} {[%emt 00:09:21]} Qxd4 {[%clk 01:11:52]} {[%emt
00:07:18]} 12. Bc3 {[%clk 01:05:34]} {[%emt 00:00:10]} Qb6 {[%clk 01:11:59]}
{[%emt 00:00:23]} 13. O-O {[%clk 01:02:39]} {[%emt 00:03:27]} Ngf6 {[%clk
01:12:09]} {[%emt 00:00:19]} 14. a4 {[%clk 00:43:50]} {[%emt 00:19:20]} e6
{[%clk 01:11:26]} {[%emt 00:01:12]} 15. a5 {[%clk 00:41:32]} {[%emt 00:02:48]}
Qc7 {[%clk 01:10:19]} {[%emt 00:01:36]} 16. Nh5 {[%clk 00:36:10]} {[%emt
00:05:52]} Nxh5 {[%clk 01:02:10]} {[%emt 00:08:40]} 17. Qxh5 {[%clk 00:36:30]}
{[%emt 00:00:09]} Nf6 {[%clk 01:01:23]} {[%emt 00:01:18]} 18. Bxf6 {[%clk
00:33:23]} {[%emt 00:03:37]} gxf6 {[%clk 01:01:22]} {[%emt 00:00:30]} 19. a6
{[%clk 00:32:16]} {[%emt 00:01:38]} b6 {[%clk 01:00:56]} {[%emt 00:00:56]} 20.
Rfe1 {[%clk 00:30:50]} {[%emt 00:01:56]} O-O-O {[%clk 01:00:54]} {[%emt
00:00:31]} 21. Qf3 {[%clk 00:29:48]} {[%emt 00:01:32]} f5 {[%clk 01:00:40]}
{[%emt 00:00:45]} 22. Re2 {[%clk 00:23:43]} {[%emt 00:06:35]} Rg8 {[%clk
01:00:05]} {[%emt 00:01:05]} 23. Rd1 {[%clk 00:21:19]} {[%emt 00:02:54]} Bc5
{[%clk 00:58:56]} {[%emt 00:01:36]} 24. c3 {[%clk 00:20:46]} {[%emt 00:01:05]}
Rg3 {[%clk 00:58:21]} {[%emt 00:01:04]} 25. Qh5 {[%clk 00:18:41]} {[%emt
00:02:37]} Rdg8 {[%clk 00:58:32]} {[%emt 00:00:18]} 26. Kf1 {[%clk 00:18:38]}
{[%emt 00:00:33]} Rxg2 {[%clk 00:58:32]} {[%emt 00:00:30]} 27. Ke1 {[%clk
00:18:20]} {[%emt 00:00:48]} Qf4 {[%clk 00:58:30]} {[%emt 00:00:32]} 28. Qg5
{[%clk 00:12:01]} {[%emt 00:06:50]} Rg1+ {[%clk 00:58:41]} {[%emt 00:00:18]}
0-1